fUSD/lending_fUSD_20240107
["ID","MTS","AMOUNT","RATE_DAILY","PERIOD"]
[310628737,1704593439012,-500.0,0.00022692,2]
[310628738,1704593439023,-1169.48,0.00022692,2]
[310628739,1704593439032,-500.0,0.00022692,2]
[310628740,1704593439041,-500.0,0.00022692,2]
[310628741,1704593439050,-500.0,0.00022692,2]
[310628742,1704593439059,-500.0,0.00022692,2]
[310628743,1704593439069,-500.0,0.00022692,2]
[310628744,1704593439078,-500.0,0.00022692,2]
[310628745,1704593439087,-500.0,0.00022692,2]
[310628746,1704593439096,-500.0,0.00022692,2]
[310628747,1704593439106,-946.82,0.00022692,2]
[310628748,1704593439116,-500.0,0.00022692,2]
[310628749,1704593439126,-500.0,0.00022692,2]
[310628750,1704593439135,-618.74,0.00022692,2]
[310628751,1704593439144,-500.0,0.00022692,2]
[310628752,1704593439153,-500.0,0.00022692,2]
[310628753,1704593439162,-20615.8,0.00022692,2]
[310628754,1704593439172,-4008.9,0.00022692,2]
[310628755,1704593439181,-500.0,0.00022692,2]
[310628756,1704593439190,-500.0,0.00022692,2]
[310628757,1704593439200,-500.0,0.00022692,2]
[310628758,1704593439209,-500.0,0.00022692,2]
[310628759,1704593439219,-30213.83,0.00022692,2]
[310628760,1704593439228,-500.0,0.00022692,2]
[310628761,1704593439237,-555.84555659,0.00022692,2]
[310628762,1704593439246,-500.0,0.00022692,2]
[310628763,1704593439255,-920.27,0.00022692,2]
[310628764,1704593439264,-500.0,0.00022692,2]
[310628765,1704593439274,-500.0,0.00022692,2]
[310628766,1704593439283,-500.0,0.00022692,2]
[310628767,1704593439292,-509.18,0.00022692,2]
[310628768,1704593439302,-500.0,0.00022692,2]
[310628769,1704593439310,-500.0,0.00022692,2]
[310628770,1704593439319,-500.0,0.00022692,2]
[310628771,1704593439329,-500.0,0.00022692,2]
[310628772,1704593439338,-500.0,0.00022692,2]
[310628773,1704593439346,-500.0,0.00022692,2]
[310628774,1704593439356,-255.01196335,0.00022692,2]
[310628775,1704593439366,-500.0,0.00022692,2]
[310628776,1704593439375,-500.0,0.00022692,2]
[310628777,1704593439383,-500.0,0.00022692,2]
[310628778,1704593439392,-500.0,0.00022692,2]
[310628779,1704593439402,-500.0,0.00022692,2]
[310628780,1704593439410,-1922.71712645,0.00022693,2]
[310628781,1704593439419,-500.0,0.00022693,2]
[310628782,1704593439428,-510.57217807,0.00022693,2]
[310628783,1704593439437,-529.33114277,0.00022693,2]
[310628784,1704593439447,-500.0,0.00022693,2]
[310628785,1704593439456,-504.53483185,0.00022693,2]
[310628786,1704593439465,-518.01679524,0.00022693,2]
[310628787,1704593439474,-500.0,0.00022693,2]
[310628788,1704593439483,-507.08239921,0.00022693,2]
[310628789,1704593439492,-500.0,0.00022693,2]
[310628790,1704593439502,-367.61149956,0.00022693,2]
[310628791,1704593439511,-509.60373897,0.00022693,2]
[310628792,1704593439521,-507.61790643,0.00022693,2]
[310628793,1704593439531,-500.0,0.00022693,2]
[310628794,1704593439540,-506.73851908,0.00022693,2]
[310628795,1704593439550,-500.0,0.00022693,2]
[310628796,1704593439559,-500.0,0.00022693,2]
[310628797,1704593439568,-500.0,0.00022693,2]
[310628798,1704593439577,-533.63638719,0.00022693,2]
[310628799,1704593439586,-438.38,0.00022693,2]
[310628800,1704593439595,-500.0,0.00022693,2]
[310628801,1704593439604,-500.0,0.00022693,2]
[310628802,1704593439613,-500.0,0.00022693,2]
[310628803,1704593439623,-500.0,0.00022693,2]
[310628804,1704593439632,-500.0,0.00022693,2]
[310628805,1704593439641,-500.0,0.00022693,2]
[310628806,1704593439651,-500.0,0.00022693,2]
[310628807,1704593439661,-500.0,0.00022693,2]
[310628808,1704593439670,-500.0,0.00022693,2]
[310628809,1704593439678,-500.0,0.00022693,2]
[310628810,1704593439687,-595.00394782,0.00022693,2]
[310628811,1704593439697,-500.0,0.00022693,2]
[310628812,1704593439705,-500.0,0.00022693,2]
[310628813,1704593439715,-500.0,0.00022693,2]
[310628814,1704593439724,-500.0,0.00022693,2]
[310628815,1704593439734,-500.0,0.00022693,2]
[310628816,1704593439744,-222.26,0.00022693,2]
[310628817,1704593439755,-241.01631647,0.00022693,2]
[310628818,1704593439766,-545.61190925,0.00022693,2]
[310628819,1704593439777,-500.0,0.00022693,2]
[310628820,1704593439786,-536.20387519,0.00022693,2]
[310628821,1704593439796,-500.0,0.00022693,2]
[310628822,1704593439805,-535.28530469,0.00022693,2]
[310628823,1704593439814,-500.0,0.00022693,2]
[310628824,1704593439823,-500.0,0.00022693,2]
[310628825,1704593439833,-500.0,0.00022693,2]
[310628826,1704593439841,-500.0,0.00022693,2]
[310628827,1704593439851,-500.0,0.00022693,2]
[310628828,1704593439861,-443.67487639,0.00022693,2]
[310628829,1704593439872,-500.0,0.00022693,2]
[310628830,1704593439882,-500.0,0.00022693,2]
[310628831,1704593439892,-500.0,0.00022693,2]
[310628832,1704593439901,-357.419211,0.00022693,2]
[310628833,1704593439911,-500.0,0.00022693,2]
[310628834,1704593439920,-427.96867895,0.00022693,2]
[310628835,1704593439930,-500.0,0.00022693,2]
[310628836,1704593439939,-500.0,0.00022693,2]
[310628838,1704593439949,-340.52478149,0.00022693,2]
[310628839,1704593439958,-500.0,0.00022693,2]
[310628840,1704593439967,-500.0,0.00022693,2]
[310628841,1704593439976,-500.0,0.00022693,2]
[310628842,1704593439997,-580.06731363,0.00022693,2]
[310628843,1704593440007,-500.0,0.00022693,2]
[310628844,1704593440021,-367.02,0.00022693,2]
[310628845,1704593440031,-500.0,0.00022693,2]
[310628846,1704593440043,-500.0,0.00022693,2]
[310628847,1704593440053,-500.0,0.00022693,2]
[310628848,1704593440063,-500.0,0.00022693,2]
[310628849,1704593440074,-510.91314684,0.00022693,2]
[310628850,1704593440083,-500.0,0.00022693,2]
[310628851,1704593440095,-603.37479232,0.00022693,2]
[310628852,1704593440106,-513.11800312,0.00022693,2]
[310628853,1704593440115,-500.0,0.00022693,2]
[310628854,1704593440125,-357.26802775,0.00022693,2]
[310628855,1704593440135,-500.0,0.00022693,2]
[310628856,1704593440145,-500.0,0.00022693,2]
[310628857,1704593440154,-500.0,0.00022693,2]
[310628858,1704593440164,-500.0,0.00022693,2]
[310628859,1704593440174,-500.0,0.00022693,2]
[310628860,1704593440183,-500.0,0.00022693,2]
[310628861,1704593440193,-500.0,0.00022693,2]
[310628862,1704593440202,-361.48,0.00022693,2]
[310628863,1704593440212,-500.0,0.00022693,2]
[310628864,1704593440221,-500.0,0.00022693,2]
[310628865,1704593440230,-500.0,0.00022693,2]
[310628866,1704593440240,-500.0,0.00022693,2]
[310628867,1704593440249,-500.0,0.00022693,2]
[310628868,1704593440260,-500.0,0.00022693,2]
[310628869,1704593440270,-606.04876925,0.00022693,2]
[310628870,1704593440280,-500.0,0.00022693,2]
[310628871,1704593440290,-522.24165845,0.00022693,2]
[310628872,1704593440299,-450.0,0.00022693,2]
[310628873,1704593440309,-515.56235747,0.00022693,2]
[310628874,1704593440319,-500.0,0.00022693,2]
[310628875,1704593440329,-309.98436822,0.00022693,2]
[310628876,1704593440338,-190.8745163,0.00022693,2]
[310628877,1704593440348,-500.0,0.00022693,2]
[310628878,1704593440357,-500.0,0.00022693,2]
[310628879,1704593440366,-500.0,0.00022693,2]
[310628880,1704593440375,-500.0,0.00022693,2]
[310628881,1704593440384,-500.0,0.00022693,2]
[310628882,1704593440394,-500.0,0.00022693,2]
[310628883,1704593440404,-500.0,0.00022693,2]
[310628884,1704593440414,-500.0,0.00022693,2]
[310628885,1704593440423,-500.0,0.00022693,2]
[310628886,1704593440433,-500.0,0.00022693,2]
[310628887,1704593440442,-500.0,0.00022693,2]
[310628888,1704593440452,-500.0,0.00022693,2]
[310628889,1704593440461,-500.0,0.00022693,2]
[310628890,1704593440471,-500.0,0.00022693,2]
[310628891,1704593440480,-517.02066971,0.00022693,2]
[310628892,1704593440494,-500.0,0.00022693,2]
[310628893,1704593440503,-500.0,0.00022693,2]
[310628894,1704593440513,-500.0,0.00022693,2]
[310628895,1704593440524,-500.0,0.00022693,2]
[310628896,1704593440534,-507.36090671,0.00022693,2]
[310628897,1704593440544,-500.0,0.00022693,2]
[310628898,1704593440553,-500.0,0.00022693,2]
[310628899,1704593440562,-535.27487053,0.00022693,2]
[310628900,1704593440572,-500.0,0.00022693,2]
[310628901,1704593440581,-500.0,0.00022693,2]
[310628902,1704593440591,-502.59743074,0.00022693,2]
[310628903,1704593440600,-476.92998653,0.00022693,2]
[310628904,1704593440610,-500.0,0.00022693,2]
[310628905,1704593440619,-438.68058983,0.00022693,2]
[310628906,1704593440629,-500.0,0.00022693,2]
[310628907,1704593440638,-500.0,0.00022693,2]
[310628908,1704593440648,-429.28926355,0.00022693,2]
[310628909,1704593440657,-500.0,0.00022693,2]
[310628910,1704593440667,-500.0,0.00022693,2]
[310628911,1704593440677,-209.96591563,0.00022693,2]
[310628912,1704593440687,-534.93665042,0.00022693,2]
[310628913,1704593440696,-500.0,0.00022693,2]
[310628914,1704593440706,-500.0,0.00022693,2]
[310628915,1704593440716,-500.0,0.00022693,2]
[310628916,1704593440725,-500.0,0.00022693,2]
[310628917,1704593440734,-500.0,0.00022693,2]
[310628918,1704593440744,-500.0,0.00022693,2]
[310628919,1704593440753,-574.98770958,0.00022693,2]
[310628920,1704593440763,-500.0,0.00022693,2]
[310628921,1704593440774,-500.0,0.00022693,2]
[310628922,1704593440785,-500.0,0.00022693,2]
[310628923,1704593440794,-500.0,0.00022693,2]
[310628924,1704593440804,-500.0,0.00022693,2]
[310628925,1704593440813,-216.32782594,0.00022693,2]
[310628926,1704593440826,-500.0,0.00022693,2]
[310628927,1704593440836,-532.84188636,0.00022693,2]
[310628928,1704593440845,-500.0,0.00022693,2]
[310628929,1704593440855,-500.0,0.00022693,2]
[310628930,1704593440864,-500.0,0.00022693,2]
[310628931,1704593440874,-500.0,0.00022693,2]
[310628932,1704593440883,-500.0,0.00022693,2]
[310628933,1704593440893,-500.0,0.00022693,2]
[310628934,1704593440902,-500.0,0.00022693,2]
[310628935,1704593440912,-500.0,0.00022693,2]
[310628936,1704593440922,-500.0,0.00022693,2]
[310628937,1704593440931,-614.5823077,0.00022693,2]
[310628938,1704593440940,-500.0,0.00022693,2]
[310628939,1704593440950,-500.0,0.00022693,2]
[310628940,1704593440959,-500.0,0.00022693,2]
[310628941,1704593440969,-500.0,0.00022693,2]
[310628942,1704593440978,-500.0,0.00022693,2]
[310628943,1704593440987,-173.73201722,0.00022693,2]
[310628944,1704593440997,-500.0,0.00022693,2]
[310628945,1704593441007,-523.88517913,0.00022693,2]
[310628946,1704593441022,-500.0,0.00022693,2]
[310628947,1704593441032,-522.7953464,0.00022693,2]
[310628948,1704593441042,-500.0,0.00022693,2]
[310628949,1704593441053,-500.0,0.00022693,2]
[310628950,1704593441064,-500.0,0.00022693,2]
[310628951,1704593441074,-500.0,0.00022693,2]
[310628952,1704593441087,-500.0,0.00022693,2]
[310628953,1704593441098,-500.0,0.00022693,2]
[310628954,1704593441109,-500.0,0.00022693,2]
[310628955,1704593441126,-500.0,0.00022693,2]
[310628956,1704593441137,-513.39738741,0.00022693,2]
[310628957,1704593441148,-567.59619005,0.00022693,2]
[310628958,1704593441162,-500.0,0.00022693,2]
[310628959,1704593441173,-500.0,0.00022693,2]
[310628960,1704593441196,-500.0,0.00022693,2]
[310628961,1704593441207,-500.0,0.00022693,2]
[310628962,1704593441217,-178.99719708,0.00022693,2]
[310628963,1704593441227,-500.0,0.00022693,2]
[310628964,1704593441238,-500.0,0.00022693,2]
[310628965,1704593441248,-500.0,0.00022693,2]
[310628966,1704593441259,-500.0,0.00022693,2]
[310628967,1704593441271,-500.0,0.00022693,2]
[310628968,1704593441282,-520.61873464,0.00022693,2]
[310628969,1704593441293,-500.0,0.00022693,2]
[310628970,1704593441304,-242.00394855,0.00022693,2]
[310628971,1704593441313,-597.1053745,0.00022693,2]
[310628972,1704593441323,-500.0,0.00022693,2]
[310628973,1704593441332,-500.0,0.00022693,2]
[310628974,1704593441342,-500.0,0.00022693,2]
[310628975,1704593441351,-500.0,0.00022693,2]
[310628976,1704593441360,-500.0,0.00022693,2]
[310628977,1704593441369,-500.0,0.00022693,2]
[310628978,1704593441379,-500.0,0.00022693,2]
[310628979,1704593441388,-500.0,0.00022693,2]
[310628980,1704593441397,-839.85,0.00022693,2]
[310628981,1704593441406,-500.0,0.00022693,2]
[310628982,1704593441415,-500.0,0.00022693,2]
[310628983,1704593441425,-472.38329496,0.00022693,2]
[310628984,1704593441435,-500.0,0.00022693,2]
[310628985,1704593441444,-500.0,0.00022693,2]
[310628986,1704593441454,-408.50559346,0.00022693,2]
[310628987,1704593441464,-500.0,0.00022693,2]
[310628988,1704593441473,-500.0,0.00022693,2]
[310628989,1704593441482,-1273.91,0.00022693,2]
[310628990,1704593441492,-500.0,0.00022693,2]
[310628991,1704593441501,-500.0,0.00022693,2]
[310628992,1704593441511,-500.0,0.00022693,2]
[310628993,1704593441520,-1442.52,0.00022693,2]
[310628994,1704593441531,-500.0,0.00022693,2]
[310628995,1704593441540,-521.09844428,0.00022693,2]
[310628996,1704593441549,-500.0,0.00022693,2]
[310628997,1704593441559,-500.0,0.00022693,2]
[310628998,1704593441568,-500.0,0.00022693,2]
[310628999,1704593441577,-500.0,0.00022693,2]
[310629000,1704593441586,-1774.31,0.00022693,2]
[310629001,1704593441595,-500.0,0.00022693,2]
[310629002,1704593441605,-500.0,0.00022693,2]
[310629003,1704593441614,-500.0,0.00022693,2]
[310629004,1704593441623,-500.0,0.00022693,2]
[310629005,1704593441633,-519.84,0.00022693,2]
[310629006,1704593441642,-500.0,0.00022693,2]
[310629007,1704593441652,-500.0,0.00022693,2]
[310629008,1704593441662,-500.0,0.00022693,2]
[310629009,1704593441671,-500.0,0.00022693,2]
[310629010,1704593441681,-500.0,0.00022693,2]
[310629011,1704593441690,-500.0,0.00022693,2]
[310629012,1704593441700,-540.89,0.00022693,2]
[310629013,1704593441710,-598.63912663,0.00022693,2]
[310629014,1704593441720,-500.0,0.00022693,2]
[310629015,1704593441729,-2208.02,0.00022693,2]
[310629016,1704593441739,-500.0,0.00022693,2]
[310629017,1704593441748,-500.0,0.00022693,2]
[310629018,1704593441758,-500.0,0.00022693,2]
[310629019,1704593441767,-510.47101134,0.00022693,2]
[310629020,1704593441777,-519.77786962,0.00022693,2]
[310629021,1704593441787,-568.4870137,0.00022693,2]
[310629022,1704593441797,-500.0,0.00022693,2]
[310629023,1704593441807,-1566.01,0.00022693,2]
[310629024,1704593441817,-500.0,0.00022693,2]
[310629025,1704593441828,-500.0,0.00022693,2]
[310629026,1704593441846,-745.33,0.00022693,2]
[310629027,1704593441857,-500.0,0.00022693,2]
[310629028,1704593441867,-500.0,0.00022693,2]
[310629029,1704593441878,-515.21622452,0.00022693,2]
[310629030,1704593441890,-520.92915236,0.00022693,2]
[310629031,1704593441902,-500.0,0.00022693,2]
[310629032,1704593441913,-500.0,0.00022693,2]
[310629033,1704593441923,-500.0,0.00022693,2]
[310629034,1704593441934,-500.0,0.00022693,2]
[310629035,1704593441944,-884.62,0.00022693,2]
[310629036,1704593441954,-500.0,0.00022693,2]
[310629037,1704593441965,-500.0,0.00022693,2]
[310629038,1704593441976,-500.0,0.00022693,2]
[310629039,1704593441986,-511.68956747,0.00022693,2]
[310629040,1704593441997,-500.0,0.00022693,2]
[310629041,1704593442007,-500.0,0.00022693,2]
[310629042,1704593442018,-500.0,0.00022693,2]
[310629043,1704593442029,-544.85,0.00022693,2]
[310629044,1704593442039,-500.0,0.00022693,2]
[310629045,1704593442049,-500.0,0.00022693,2]
[310629046,1704593442059,-500.0,0.00022693,2]
[310629047,1704593442068,-523.23463161,0.00022693,2]
[310629048,1704593442078,-500.0,0.00022693,2]
[310629049,1704593442088,-512.6971017,0.00022693,2]
[310629050,1704593442097,-496.62722458,0.00022693,2]
[310629051,1704593442108,-500.0,0.00022693,2]
[310629052,1704593442117,-540.23786781,0.00022693,2]
[310629053,1704593442127,-521.28194539,0.00022693,2]
[310629054,1704593442136,-500.0,0.00022693,2]
[310629055,1704593442146,-518.57134372,0.00022693,2]
[310629056,1704593442155,-1703.55,0.00022693,2]
[310629057,1704593442164,-500.0,0.00022693,2]
[310629058,1704593442173,-500.0,0.00022693,2]
[310629059,1704593442183,-500.0,0.00022693,2]
[310629060,1704593442192,-607.09,0.00022693,2]
[310629061,1704593442202,-500.0,0.00022693,2]
[310629062,1704593442211,-3453.09,0.00022693,2]
[310629063,1704593442220,-500.0,0.00022693,2]
[310629064,1704593442229,-500.0,0.00022693,2]
[310629065,1704593442238,-517.67623257,0.00022693,2]
[310629066,1704593442248,-500.0,0.00022693,2]
[310629067,1704593442257,-500.0,0.00022693,2]
[310629068,1704593442267,-1181.18,0.00022693,2]
[310629069,1704593442277,-544.01479775,0.00022693,2]
[310629070,1704593442286,-500.0,0.00022693,2]
[310629071,1704593442295,-500.0,0.00022693,2]
[310629072,1704593442304,-363.59257762,0.00022693,2]
[310629074,1704593442314,-500.0,0.00022693,2]
[310629076,1704593442323,-500.0,0.00022693,2]
[310629078,1704593442333,-500.0,0.00022693,2]
[310629080,1704593442342,-500.0,0.00022693,2]
[310629081,1704593442352,-500.0,0.00022693,2]
[310629082,1704593442360,-166.95988951,0.00022693,2]
[310629083,1704593442370,-6385.87,0.00022693,2]
[310629084,1704593442380,-398.98846582,0.00022693,2]
[310629085,1704593442390,-500.0,0.00022693,2]
[310629086,1704593442400,-500.0,0.00022693,2]
[310629087,1704593442410,-508.73230634,0.00022693,2]
[310629089,1704593442419,-644.56,0.00022693,2]
[310629090,1704593442429,-500.0,0.00022693,2]
[310629092,1704593442439,-500.0,0.00022693,2]
[310629093,1704593442449,-500.0,0.00022693,2]
[310629094,1704593442459,-500.0,0.00022693,2]
[310629095,1704593442469,-500.0,0.00022693,2]
[310629096,1704593442479,-500.0,0.00022693,2]
[310629097,1704593442489,-518.86354838,0.00022693,2]
[310629098,1704593442501,-500.0,0.00022693,2]
[310629099,1704593442511,-500.0,0.00022693,2]
[310629100,1704593442521,-500.0,0.00022693,2]
[310629101,1704593442531,-542.24323185,0.00022693,2]
[310629102,1704593442541,-500.0,0.00022693,2]
[310629103,1704593442551,-500.0,0.00022693,2]
[310629104,1704593442562,-500.0,0.00022693,2]
[310629105,1704593442816,-500.0,0.00022693,2]
[310629106,1704593442826,-500.0,0.00022693,2]
[310629107,1704593442835,-500.0,0.00022693,2]
[310629108,1704593442844,-2126.67,0.00022693,2]
[310629109,1704593442853,-500.0,0.00022693,2]
[310629110,1704593442862,-500.0,0.00022693,2]
[310629111,1704593442872,-500.0,0.00022693,2]
[310629112,1704593442881,-613.89470649,0.00022693,2]
[310629113,1704593442890,-530.91668808,0.00022693,2]
[310629114,1704593442899,-757.71,0.00022693,2]
[310629115,1704593442908,-500.0,0.00022693,2]
[310629116,1704593442917,-640.56088108,0.00022693,2]
[310629117,1704593442926,-500.0,0.00022693,2]
[310629118,1704593442935,-500.0,0.00022693,2]
[310629119,1704593442945,-500.0,0.00022693,2]
[310629120,1704593442954,-500.0,0.00022693,2]
[310629121,1704593442963,-500.0,0.00022693,2]
[310629122,1704593442973,-500.0,0.00022693,2]
[310629123,1704593442982,-661.99,0.00022693,2]
[310629124,1704593442991,-500.0,0.00022693,2]
[310629125,1704593443006,-500.0,0.00022693,2]
[310629126,1704593443017,-500.0,0.00022693,2]
[310629127,1704593443026,-500.0,0.00022693,2]
[310629128,1704593443036,-761.98,0.00022693,2]
[310629129,1704593443045,-500.0,0.00022693,2]
[310629130,1704593443054,-500.0,0.00022693,2]
[310629131,1704593443064,-500.0,0.00022693,2]
[310629132,1704593443073,-500.0,0.00022693,2]
[310629133,1704593443085,-500.0,0.00022693,2]
[310629134,1704593443095,-500.0,0.00022693,2]
[310629135,1704593443105,-500.0,0.00022693,2]
[310629136,1704593443115,-507.28959683,0.00022693,2]
[310629137,1704593443125,-500.0,0.00022693,2]
[310629138,1704593443135,-500.0,0.00022693,2]
[310629139,1704593443144,-500.0,0.00022693,2]
[310629140,1704593443154,-500.0,0.00022693,2]
[310629141,1704593443164,-525.50613534,0.00022693,2]
[310629142,1704593443173,-500.0,0.00022693,2]
[310629143,1704593443183,-500.0,0.00022693,2]
[310629144,1704593443192,-1169.48,0.00022693,2]
[310629145,1704593443201,-535.54709599,0.00022693,2]
[310629146,1704593443210,-500.0,0.00022693,2]
[310629147,1704593443220,-500.0,0.00022693,2]
[310629148,1704593443229,-500.0,0.00022693,2]
[310629149,1704593443239,-500.0,0.00022693,2]
[310629150,1704593443248,-500.0,0.00022693,2]
[310629151,1704593443257,-500.0,0.00022693,2]
[310629152,1704593443267,-357.73447644,0.00022693,2]
[310629153,1704593443276,-398.55,0.00022693,2]
[310629154,1704593443285,-500.0,0.00022693,2]
[310629155,1704593443294,-500.0,0.00022693,2]
[310629156,1704593443304,-500.0,0.00022693,2]
[310629157,1704593443313,-500.0,0.00022693,2]
[310629158,1704593443322,-500.0,0.00022693,2]
[310629159,1704593443332,-500.0,0.00022693,2]
[310629160,1704593443341,-500.0,0.00022693,2]
[310629161,1704593443350,-946.82,0.00022693,2]
[310629162,1704593443359,-504.37570135,0.00022693,2]
[310629163,1704593443369,-500.0,0.00022693,2]
[310629164,1704593443378,-500.0,0.00022693,2]
[310629165,1704593443388,-507.50281844,0.00022693,2]
[310629166,1704593443397,-193.89303235,0.00022693,2]
[310629167,1704593443406,-500.0,0.00022693,2]
[310629168,1704593443416,-500.0,0.00022693,2]
[310629169,1704593443425,-500.0,0.00022693,2]
[310629170,1704593443435,-831.13,0.00022693,2]
[310629171,1704593443444,-500.0,0.00022693,2]
[310629172,1704593443454,-618.74,0.00022693,2]
[310629173,1704593443463,-500.0,0.00022693,2]
[310629174,1704593443473,-500.0,0.00022693,2]
[310629175,1704593443482,-500.0,0.00022693,2]
[310629176,1704593443492,-500.0,0.00022693,2]
[310629177,1704593443502,-500.0,0.00022693,2]
[310629178,1704593443511,-4008.9,0.00022693,2]
[310629179,1704593443521,-500.0,0.00022693,2]
[310629180,1704593443531,-500.0,0.00022693,2]
[310629181,1704593443541,-500.0,0.00022693,2]
[310629182,1704593443551,-500.0,0.00022693,2]
[310629183,1704593443561,-500.0,0.00022693,2]
[310629184,1704593443570,-500.0,0.00022693,2]
[310629185,1704593443579,-500.0,0.00022693,2]
[310629186,1704593443589,-500.0,0.00022693,2]
[310629187,1704593443599,-502.95965661,0.00022693,2]
[310629188,1704593443608,-30213.83,0.00022693,2]
[310629189,1704593443618,-500.0,0.00022693,2]
[310629190,1704593443628,-500.0,0.00022693,2]
[310629191,1704593443637,-426.00795818,0.00022693,2]
[310629192,1704593443646,-1224.89,0.00022693,2]
[310629193,1704593443656,-500.0,0.00022693,2]
[310629194,1704593443665,-500.0,0.00022693,2]
[310629195,1704593443675,-460.68758052,0.00022693,2]
[310629196,1704593443685,-500.0,0.00022693,2]
[310629197,1704593443694,-509.18,0.00022693,2]
[310629198,1704593443704,-500.0,0.00022693,2]
[310629199,1704593443714,-500.0,0.00022693,2]
[310629200,1704593443723,-500.0,0.00022693,2]
[310629201,1704593443733,-500.0,0.00022693,2]
[310629202,1704593443743,-500.0,0.00022693,2]
[310629203,1704593443752,-366.5,0.00022693,2]
[310629204,1704593443764,-500.0,0.00022693,2]
[310629205,1704593443774,-319.11476695,0.00022693,2]
[310629206,1704593443784,-500.0,0.00022693,2]
[310629207,1704593443794,-500.0,0.00022693,2]
[310629208,1704593443803,-500.0,0.00022693,2]
[310629209,1704593443813,-500.0,0.00022693,2]
[310629210,1704593443822,-286.38,0.00022693,2]
[310629211,1704593443831,-500.0,0.00022693,2]
[310629212,1704593443842,-500.0,0.00022693,2]
[310629213,1704593443851,-504.04725345,0.00022693,2]
[310629214,1704593443861,-500.0,0.00022693,2]
[310629215,1704593443872,-500.0,0.00022693,2]
[310629216,1704593443883,-500.0,0.00022693,2]
[310629217,1704593443893,-1217.34644427,0.00022693,2]
[310629218,1704593443903,-156158.1848,0.00022694,2]
[310629219,1704593443913,-500.0,0.00022694,2]
[310629220,1704593443923,-49936.5034,0.00022694,2]
[310629221,1704593443933,-255.01196332,0.00022711,2]
[310629222,1704593443943,-496.81613684,0.00022713,2]
[310629223,1704593443952,-500.0,0.00022713,2]
[310629224,1704593443963,-500.0,0.00022713,2]
[310629225,1704593443974,-967.16,0.00022713,2]
[310629226,1704593443984,-500.0,0.00022713,2]
[310629227,1704593443994,-500.0,0.00022713,2]
[310629228,1704593444006,-364.28060941,0.00022713,2]
[310629229,1704593444019,-500.0,0.00022713,2]
[310629230,1704593444033,-510.74928727,0.00022713,2]
[310629231,1704593444043,-500.0,0.00022713,2]
[310629232,1704593444053,-500.0,0.00022713,2]
[310629233,1704593444064,-500.0,0.00022713,2]
[310629234,1704593444074,-500.0,0.00022713,2]
[310629235,1704593444085,-500.0,0.00022713,2]
[310629236,1704593444096,-20615.8,0.00022713,2]
[310629237,1704593444106,-920.27,0.00022713,2]
[310629238,1704593444116,-500.0,0.00022713,2]
[310629239,1704593444126,-500.0,0.00022713,2]
[310629240,1704593444135,-515.04,0.00022714,2]
[310629241,1704593444145,-151.3,0.00022755,2]
[310629242,1704593444154,-720.38,0.00022777,2]
[310629243,1704593444163,-500.0,0.00022791,2]